lending/lending_fUSD_20250131
["ID","MTS","AMOUNT","RATE_DAILY","PERIOD"]
[351108566,1738339857756,-782.52,0.00016986,2]
[351108567,1738339857765,-500.0,0.00016986,2]
[351108568,1738339857775,-798.69,0.00016986,2]
[351108569,1738339857785,-500.0,0.00016986,2]
[351108570,1738339857795,-500.0,0.00016986,2]
[351108571,1738339857805,-500.0,0.00016986,2]
[351108572,1738339857815,-500.0,0.00016986,2]
[351108573,1738339857824,-773.92,0.00016986,2]
[351108574,1738339857834,-532.79,0.00016986,2]
[351108575,1738339857844,-700.74,0.00016986,2]
[351108576,1738339857853,-250.86736584,0.00016986,2]
[351108577,1738339857863,-500.0,0.00016986,2]
[351108578,1738339857873,-500.0,0.00016986,2]
[351108579,1738339857883,-816.15,0.00016986,2]
[351108580,1738339857893,-500.0,0.00016986,2]
[351108581,1738339857904,-500.0,0.00016986,2]
[351108582,1738339857914,-653.68,0.00016986,2]
[351108583,1738339857924,-500.0,0.00016986,2]
[351108584,1738339857934,-612.0,0.00016986,2]
[351108585,1738339857943,-581.62,0.00016986,2]
[351108586,1738339857954,-500.0,0.00016986,2]
[351108587,1738339857965,-500.0,0.00016986,2]
[351108588,1738339857975,-500.0,0.00016986,2]
[351108589,1738339857986,-528.51,0.00016986,2]
[351108590,1738339857996,-500.0,0.00016986,2]
[351108591,1738339858005,-500.0,0.00016986,2]
[351108592,1738339858015,-227.16681588,0.00016986,2]
[351108593,1738339858026,-1555.36,0.00016986,2]
[351108594,1738339858037,-506.3,0.00016986,2]
[351108595,1738339858047,-500.0,0.00016986,2]
[351108596,1738339858058,-500.0,0.00016986,2]
[351108597,1738339858068,-721.78,0.00016986,2]
[351108598,1738339858079,-500.0,0.00016986,2]
[351108599,1738339858088,-500.0,0.00016986,2]
[351108600,1738339858098,-520.53,0.00016986,2]
[351108601,1738339858108,-500.0,0.00016986,2]
[351108602,1738339858117,-500.0,0.00016986,2]
[351108603,1738339858127,-500.0,0.00016986,2]
[351108604,1738339858137,-500.0,0.00016986,2]
[351108605,1738339858146,-826.2,0.00016986,2]
[351108606,1738339858156,-991.51,0.00016986,2]
[351108607,1738339858167,-1048.63,0.00016986,2]
[351108608,1738339858176,-500.0,0.00016986,2]
[351108609,1738339858185,-643.65,0.00016986,2]
[351108610,1738339858194,-500.0,0.00016986,2]
[351108611,1738339858204,-764.13,0.00016986,2]
[351108612,1738339858214,-741.9,0.00016986,2]
[351108613,1738339858223,-500.0,0.00016986,2]
[351108614,1738339858232,-500.0,0.00016986,2]
[351108615,1738339858242,-500.0,0.00016986,2]
[351108616,1738339858251,-1292.63,0.00016986,2]
[351108617,1738339858261,-163.33,0.00016986,2]
[351108618,1738339858270,-1072.67,0.00016986,2]
[351108619,1738339858279,-1072.6,0.00016986,2]
[351108620,1738339858288,-500.0,0.00016986,2]
[351108621,1738339858298,-1460.43,0.00016986,2]
[351108622,1738339858307,-500.0,0.00016986,2]
[351108623,1738339858316,-539.25,0.00016986,2]
[351108624,1738339858325,-1039.22,0.00016986,2]
[351108625,1738339858335,-500.0,0.00016986,2]
[351108626,1738339858344,-318.85968141,0.00016986,2]
[351108627,1738339858354,-648.26,0.00016986,2]
[351108628,1738339858364,-500.0,0.00016986,2]
[351108629,1738339858374,-559.27,0.00016986,2]
[351108630,1738339858383,-500.0,0.00016986,2]
[351108631,1738339858393,-500.0,0.00016986,2]
[351108632,1738339858402,-500.0,0.00016986,2]
[351108633,1738339858414,-511.12,0.00016986,2]
[351108634,1738339858423,-1295.21,0.00016986,2]
[351108635,1738339858432,-559.57,0.00016986,2]
[351108636,1738339858442,-500.0,0.00016986,2]
[351108637,1738339858451,-500.0,0.00016986,2]
[351108638,1738339858461,-500.0,0.00016986,2]
[351108639,1738339858471,-518.35,0.00016986,2]
[351108640,1738339858480,-500.0,0.00016986,2]
[351108641,1738339858491,-746.9,0.00016986,2]
[351108642,1738339858500,-500.0,0.00016986,2]
[351108643,1738339858510,-1007.13,0.00016986,2]
[351108644,1738339858520,-843.91,0.00016986,2]
[351108645,1738339858529,-642.85,0.00016986,2]
[351108646,1738339858538,-500.0,0.00016986,2]
[351108647,1738339858548,-500.0,0.00016986,2]
[351108648,1738339858558,-500.0,0.00016986,2]
[351108649,1738339858567,-534.48,0.00016986,2]
[351108650,1738339858576,-509.02,0.00016986,2]
[351108651,1738339858585,-500.0,0.00016986,2]
[351108652,1738339858595,-500.0,0.00016986,2]
[351108653,1738339858604,-500.0,0.00016986,2]
[351108654,1738339858613,-960.18,0.00016986,2]
[351108655,1738339858622,-500.0,0.00016986,2]
[351108656,1738339858631,-500.0,0.00016986,2]
[351108657,1738339858689,-500.0,0.00016986,2]
[351108658,1738339858699,-500.0,0.00016986,2]
[351108659,1738339858709,-762.2,0.00016986,2]
[351108660,1738339858720,-500.0,0.00016986,2]
[351108661,1738339858729,-500.0,0.00016986,2]
[351108662,1738339858738,-500.0,0.00016986,2]
[351108663,1738339858747,-1168.73,0.00016986,2]
[351108664,1738339858757,-657.63,0.00016986,2]
[351108665,1738339858767,-500.0,0.00016986,2]
[351108666,1738339858776,-908.99,0.00016986,2]
[351108667,1738339858785,-500.0,0.00016986,2]
[351108668,1738339858794,-500.0,0.00016986,2]
[351108669,1738339858803,-973.08,0.00016986,2]
[351108670,1738339858813,-500.0,0.00016986,2]
[351108671,1738339858822,-500.0,0.00016986,2]
[351108672,1738339858832,-547.75,0.00016986,2]
[351108673,1738339858843,-500.0,0.00016986,2]
[351108674,1738339858852,-517.19,0.00016986,2]
[351108675,1738339858861,-500.0,0.00016986,2]
[351108676,1738339858870,-500.0,0.00016986,2]
[351108677,1738339858880,-500.0,0.00016986,2]
[351108678,1738339858889,-500.0,0.00016986,2]
[351108679,1738339858898,-500.0,0.00016986,2]
[351108680,1738339858908,-815.62,0.00016986,2]
[351108681,1738339858920,-570.54,0.00016986,2]
[351108682,1738339858929,-500.0,0.00016986,2]
[351108683,1738339858939,-615.93,0.00016986,2]
[351108684,1738339858948,-500.0,0.00016986,2]
[351108685,1738339858957,-684.09,0.00016986,2]
[351108686,1738339858967,-1013.31,0.00016986,2]
[351108687,1738339858978,-423.48942932,0.00016986,2]
[351108688,1738339858987,-1414.13,0.00016986,2]
[351108689,1738339858996,-500.0,0.00016986,2]
[351108690,1738339859005,-500.0,0.00016986,2]
[351108691,1738339859016,-649.85,0.00016986,2]
[351108692,1738339859024,-596.53,0.00016986,2]
[351108693,1738339859034,-510.3,0.00016986,2]
[351108694,1738339859043,-1192.15,0.00016986,2]
[351108695,1738339859052,-935.79,0.00016986,2]
[351108696,1738339859061,-500.0,0.00016986,2]
[351108697,1738339859070,-1132.76,0.00016986,2]
[351108698,1738339859080,-500.0,0.00016986,2]
[351108699,1738339859090,-500.0,0.00016986,2]
[351108700,1738339859100,-500.0,0.00016986,2]
[351108701,1738339859110,-854.68,0.00016986,2]
[351108702,1738339859119,-728.49,0.00016986,2]
[351108703,1738339859129,-500.0,0.00016986,2]
[351108704,1738339859138,-2026.41,0.00016986,2]
[351108705,1738339859147,-1218.3,0.00016986,2]
[351108706,1738339859156,-947.12,0.00016986,2]
[351108707,1738339859166,-1778.29,0.00016986,2]
[351108708,1738339859176,-7486.58,0.00016986,2]
[351108709,1738339859185,-500.0,0.00016986,2]
[351108710,1738339859194,-500.0,0.00016986,2]
[351108711,1738339859203,-805.59,0.00016986,2]
[351108712,1738339859213,-577.69,0.00016986,2]
[351108713,1738339859222,-500.0,0.00016986,2]
[351108714,1738339859231,-807.78,0.00016986,2]
[351108715,1738339859241,-433.81581766,0.00016986,2]
[351108716,1738339859251,-500.0,0.00016986,2]
[351108717,1738339859262,-313.61296242,0.00016986,2]
[351108718,1738339859271,-1051.9,0.00016986,2]
[351108719,1738339859281,-980.53,0.00016986,2]
[351108720,1738339859291,-500.0,0.00016986,2]
[351108721,1738339859300,-792.72,0.00016986,2]
[351108722,1738339859310,-936.64,0.00016986,2]
[351108723,1738339859319,-931.55,0.00016986,2]
[351108724,1738339859329,-1200.42,0.00016986,2]
[351108725,1738339859339,-739.483882,0.00016986,2]
[351108726,1738339859348,-757.97,0.00016986,2]
[351108727,1738339859357,-1040.64,0.00016986,2]
[351108728,1738339859367,-500.0,0.00016986,2]
[351108729,1738339859376,-500.0,0.00016986,2]
[351108730,1738339859387,-855.97,0.00016986,2]
[351108731,1738339859396,-500.0,0.00016986,2]
[351108732,1738339859405,-1387.07,0.00016986,2]
[351108733,1738339859414,-500.0,0.00016986,2]
[351108734,1738339859424,-504.78,0.00016986,2]
[351108735,1738339859434,-500.0,0.00016986,2]
[351108736,1738339859443,-758.84,0.00016986,2]
[351108737,1738339859453,-807.69,0.00016986,2]
[351108738,1738339859462,-623.59833168,0.00016986,2]
[351108739,1738339859471,-1068.81,0.00016986,2]
[351108740,1738339859480,-1680.18,0.00016986,2]
[351108741,1738339859490,-526.4,0.00016986,2]
[351108742,1738339859500,-788.18,0.00016986,2]
[351108743,1738339859509,-500.0,0.00016986,2]
[351108744,1738339859519,-1155.85,0.00016986,2]
[351108745,1738339859528,-1061.26,0.00016986,2]
[351108746,1738339859538,-2502.49,0.00016986,2]
[351108747,1738339859548,-535.2,0.00016986,2]
[351108748,1738339859557,-973.94,0.00016986,2]
[351108749,1738339859566,-1083.92,0.00016986,2]
[351108750,1738339859576,-500.0,0.00016986,2]
[351108751,1738339859586,-580.28,0.00016986,2]
[351108752,1738339859595,-500.0,0.00016986,2]
[351108753,1738339859605,-663.861139,0.00016986,2]
[351108754,1738339859615,-643.07,0.00016986,2]
[351108755,1738339859625,-500.0,0.00016986,2]
[351108756,1738339859634,-731.54,0.00016986,2]
[351108757,1738339859644,-1678.73,0.00016986,2]
[351108758,1738339859652,-1024.55,0.00016986,2]
[351108759,1738339859661,-500.0,0.00016986,2]
[351108760,1738339859673,-2067.49,0.00016986,2]
[351108761,1738339859682,-645.0,0.00016986,2]
[351108762,1738339859692,-1231.05,0.00016986,2]
[351108763,1738339859706,-743.06,0.00016986,2]
[351108764,1738339859715,-1414.91,0.00016986,2]
[351108765,1738339859728,-862.97,0.00016986,2]
[351108766,1738339859737,-159.85377996,0.00016986,2]
[351108767,1738339859747,-558.43,0.00016986,2]
[351108768,1738339859756,-500.0,0.00016986,2]
[351108769,1738339859765,-1187.44,0.00016986,2]
[351108770,1738339859774,-1149.65,0.00016986,2]
[351108771,1738339859783,-825.32,0.00016986,2]
[351108772,1738339859793,-500.0,0.00016986,2]
[351108773,1738339859803,-2087.47,0.00016986,2]
[351108774,1738339859814,-500.0,0.00016986,2]
[351108775,1738339859823,-1107.78,0.00016986,2]
[351108776,1738339859832,-628.38474858,0.00016986,2]
[351108777,1738339859847,-500.0,0.00016986,2]
[351108778,1738339859873,-1465.86,0.00016986,2]
[351108779,1738339859882,-500.0,0.00016986,2]
[351108780,1738339859893,-500.0,0.00016986,2]
[351108781,1738339859902,-1917.5,0.00016986,2]
[351108782,1738339859912,-500.0,0.00016986,2]
[351108783,1738339859921,-536.31,0.00016986,2]
[351108784,1738339859931,-500.0,0.00016986,2]
[351108785,1738339859940,-705.44,0.00016986,2]
[351108786,1738339859950,-532.21,0.00016986,2]
[351108787,1738339859959,-620.02,0.00016986,2]
[351108788,1738339859968,-1826.69,0.00016986,2]
[351108789,1738339859978,-631.8,0.00016986,2]
[351108790,1738339859987,-1326.32,0.00016986,2]
[351108791,1738339859996,-500.0,0.00016986,2]
[351108792,1738339860005,-500.0,0.00016986,2]
[351108793,1738339860015,-2629.17,0.00016986,2]
[351108794,1738339860024,-520.09,0.00016986,2]
[351108795,1738339860034,-2229.98,0.00016986,2]
[351108796,1738339860044,-1171.22,0.00016986,2]
[351108797,1738339860053,-1485.53,0.00016986,2]
[351108798,1738339860063,-1562.39,0.00016986,2]
[351108799,1738339860073,-500.0,0.00016986,2]
[351108800,1738339860083,-1216.61,0.00016986,2]
[351108801,1738339860092,-2110.77,0.00016986,2]
[351108802,1738339860101,-500.0,0.00016986,2]
[351108803,1738339860110,-601.74,0.00016986,2]
[351108804,1738339860120,-1157.53,0.00016986,2]
[351108805,1738339860130,-663.1,0.00016986,2]
[351108806,1738339860140,-1409.31,0.00016986,2]
[351108807,1738339860149,-1596.51,0.00016986,2]
[351108808,1738339860158,-536.51,0.00016986,2]
[351108809,1738339860169,-847.4,0.00016986,2]
[351108810,1738339860179,-1000.0,0.00016986,2]
[351108811,1738339860188,-751.1,0.00016986,2]
[351108812,1738339860198,-573.59,0.00016986,2]
[351108813,1738339860207,-1439.65,0.00016986,2]
[351108814,1738339860217,-961.12,0.00016986,2]
[351108815,1738339860227,-3770.8,0.00016986,2]
[351108816,1738339860236,-500.0,0.00016986,2]
[351108817,1738339860245,-2817.89,0.00016986,2]
[351108818,1738339860255,-812.87,0.00016986,2]
[351108819,1738339860264,-500.0,0.00016986,2]
[351108820,1738339860273,-1048.02,0.00016986,2]
[351108821,1738339860283,-1570.22,0.00016986,2]
[351108822,1738339860293,-500.0,0.00016986,2]
[351108823,1738339860302,-2922.1,0.00016986,2]
[351108824,1738339860312,-1138.01,0.00016986,2]
[351108825,1738339860321,-500.0,0.00016986,2]
[351108826,1738339860331,-547.22,0.00016986,2]
[351108827,1738339860340,-624.84839394,0.00016986,2]
[351108828,1738339860349,-5055.93,0.00016986,2]
[351108829,1738339860359,-513.42,0.00016986,2]
[351108830,1738339860368,-944.93,0.00016986,2]
[351108831,1738339860377,-1268.59,0.00016986,2]
[351108832,1738339860386,-2037.46,0.00016986,2]
[351108833,1738339860396,-1454.84,0.00016986,2]
[351108834,1738339860406,-5055.91,0.00016986,2]
[351108835,1738339860415,-2816.45,0.00016986,2]
[351108836,1738339860424,-1944.53,0.00016986,2]
[351108837,1738339860433,-3249.16,0.00016986,2]
[351108838,1738339860442,-567.87,0.00016986,2]
[351108839,1738339860452,-729.79,0.00016986,2]
[351108840,1738339860461,-205.49756415,0.00016986,2]
[351108841,1738339860471,-1146.51,0.00016986,2]
[351108842,1738339860481,-1403.56,0.00016986,2]
[351108843,1738339860490,-4621.29,0.00016986,2]
[351108844,1738339860499,-2451.84,0.00016986,2]
[351108845,1738339860509,-1109.53,0.00016986,2]
[351108846,1738339860518,-3757.96,0.00016986,2]
[351108847,1738339860528,-500.0,0.00016986,2]
[351108848,1738339860537,-1459.07,0.00016986,2]
[351108849,1738339860546,-966.35,0.00016986,2]
[351108850,1738339860556,-500.0,0.00016986,2]
[351108851,1738339860565,-1419.21,0.00016986,2]
[351108852,1738339860575,-860.9,0.00016986,2]
[351108853,1738339860584,-1782.52,0.00016986,2]
[351108854,1738339860595,-648.16,0.00016986,2]
[351108855,1738339860604,-500.0,0.00016986,2]
[351108856,1738339860613,-805.46,0.00016986,2]
[351108857,1738339860623,-2997.56,0.00016986,2]
[351108858,1738339860632,-2199.03,0.00016986,2]
[351108859,1738339860642,-996.57,0.00016986,2]
[351108860,1738339860651,-500.0,0.00016986,2]
[351108861,1738339860661,-870.32,0.00016986,2]
[351108862,1738339860672,-953.43,0.00016986,2]
[351108863,1738339860681,-500.0,0.00016986,2]
[351108864,1738339860691,-500.0,0.00016986,2]
[351108865,1738339860700,-1740.87,0.00016986,2]
[351108866,1738339860710,-405.27295908,0.00016986,2]
[351108867,1738339860721,-3633.42,0.00016986,2]
[351108868,1738339860731,-500.0,0.00016986,2]
[351108869,1738339860740,-7796.36,0.00016986,2]
[351108870,1738339860750,-500.0,0.00016986,2]
[351108871,1738339860762,-456.38170655,0.00016986,2]
[351108872,1738339860771,-500.0,0.00016999,2]
[351108873,1738339860781,-881.8824603,0.00016999,2]
[351108874,1738339860790,-3458.3358122,0.00016999,2]
[351108875,1738339860800,-2993.4357163,0.00016999,2]
[351108876,1738339860810,-4750.2074948,0.00016999,2]
[351108877,1738339860819,-346743.37943821,0.00017,2]
[351108878,1738339860844,-1049.49480193,0.00016712,2]
[351108879,1738339860856,-238.69519807,0.00016712,2]
[351108880,1738339860865,-387.39167385,0.00017,2]
[351108881,1738339860877,-269827.08906851,0.00017,2]
[351108882,1738339860887,-608.66058973,0.00017,2]
[351108883,1738339860899,-630.0395395,0.00017,2]
[351108884,1738339860910,-20205.39851066,0.00017,2]
[351108885,1738339860923,-1945.82078179,0.00017,2]
[351108886,1738339860938,-3425.0216,0.00017,2]
[351108896,1738340597217,316.2,0.00011,5]
[351108898,1738340720056,7255.38225093,9e-05,2]
[351108899,1738340737174,2744.61774907,8e-05,2]
[351108900,1738340737195,10000.0,8e-05,2]
[351108901,1738340737218,3987.33319043,8e-05,2]
[351108902,1738340755954,5515.7617123,6.94e-05,2]
[351108907,1738340917732,496.90509727,9.828e-05,2]
[351108908,1738340917753,7583.17651002,9.828e-05,2]
[351108910,1738340954840,1000.0,9.9e-05,3]
[351108911,1738340956967,2000.0,0.0001,3]
[351108912,1738340970939,2416.82348998,9.227e-05,2]
[351108913,1738340970960,715.17651002,9.227e-05,2]
[351108929,1738340996740,500.0,9.5e-05,2]
[351108948,1738341031541,-649.796309,9.922e-05,2]
[351108949,1738341031550,-354.37310376,9.973e-05,2]
[351108950,1738341031560,-500.0,9.973e-05,2]
[351108951,1738341031569,-150.0,9.998e-05,2]
[351108952,1738341031579,-416.35403082,9.999e-05,2]
[351108953,1738341031590,-500.0,9.999e-05,2]
[351108954,1738341031598,-363.59566614,9.999e-05,2]
[351108955,1738341031608,-500.0,9.999e-05,2]
[351108956,1738341031619,-500.0,9.999e-05,2]
[351108957,1738341031628,-543.17427219,9.999e-05,2]
[351108958,1738341031637,-422.39029403,9.999e-05,2]
[351108959,1738341031646,-500.0,9.999e-05,2]
[351108960,1738341031656,-500.0,9.999e-05,2]
[351108961,1738341031665,-500.0,9.999e-05,2]
[351108962,1738341031674,-577.84940748,9.999e-05,2]
[351108963,1738341031683,-105.06691654,0.0001,2]
[351108964,1738341031707,-172.23524004,0.0001,2]
[351108965,1738341031716,-2887.7233596,0.0001,2]
[351108966,1738341031728,-2286.05256032,0.0001,2]
[351108967,1738341031739,-326.565,0.0001,2]
[351108968,1738341031763,-5960.86419844,0.0001,2]
[351108969,1738341031773,-198789.33584796,0.0001,2]
[351108970,1738341031793,-112314.68004238,0.0001,2]
[351108971,1738341031804,-1484.895775,0.0001,2]
[351108972,1738341031816,-67088.00632757,0.0001,2]
[351108973,1738341031867,-186882.4029002,0.0001,2]
[351108974,1738341031922,-43293.8368093,0.0001,2]
[351108975,1738341031935,-57507.51325411,0.0001,2]
[351108976,1738341031946,-1672.000009,0.0001,2]
[351108977,1738341031957,-415903.87444417,0.0001,2]
[351108978,1738341031969,-214722.96296417,0.0001,2]
[351108979,1738341032029,-71956.044,0.0001,2]
[351109510,1738341037447,-56704.98433968,0.0001,2]
[351109512,1738341037457,-500.0,0.0001,2]
[351109514,1738341037466,-160.51,0.00010137,2]
[351109516,1738341037475,-500.0,0.000105,2]
[351109519,1738341037486,-500.0,0.00010521,2]
[351109521,1738341037495,-1322.68,0.00010963,2]
[351109523,1738341037504,-2709.68553366,0.00011,2]
[351109525,1738341037514,-500.0,0.00011,2]
[351109527,1738341037525,-193.54320699,0.00011051,2]
[351109529,1738341037536,-3100.0,0.000114,4]
[351109531,1738341037546,-4100.0,0.000115,4]
[351109533,1738341037555,-5200.0,0.000116,4]
[351109535,1738341037565,-720.54,0.00011603,2]
[351109537,1738341037575,-1000.0,0.000117,4]
[351109539,1738341037583,-1000.0,0.000118,4]
[351109541,1738341037593,-200.0,0.00011804,2]
[351109543,1738341037603,-193.54320699,0.00011899,2]
[351109545,1738341037612,-2582.35695021,0.000119,2]
[351109546,1738341037621,-1000.0,0.000119,4]
[351109549,1738341037631,-2582.35695019,0.00011927,2]
[351109551,1738341037641,-2582.35695019,0.00011954,2]
[351109552,1738341037650,-2582.35695019,0.00011981,2]
[351109555,1738341037660,-266460.85784333,0.00011999,2]
[351109557,1738341037669,-284.51072018,0.00012,2]
[351109559,1738341037679,-643139.40982911,0.00012,2]
[351109561,1738341037688,-3518.71844235,0.00012,2]
[351109563,1738341037697,-11338897.45833145,0.00012,2]
[351109564,1738341037706,-759.93240354,0.00012,2]
[351109566,1738341037715,-2582.35695019,0.00012008,2]
[351109568,1738341037725,-2582.35695019,0.00012035,2]
[351109571,1738341037735,-2582.35695019,0.00012062,2]
[351109573,1738341037745,-2582.35695019,0.00012089,2]
[351109574,1738341037754,-2582.35695019,0.00012116,2]
[351109575,1738341037763,-2582.35695019,0.00012143,2]
[351109576,1738341037773,-185.23,0.00012352,2]
[351109577,1738341037782,-190.32,0.000126,2]
[351109578,1738341037791,-1000.0,0.0001281,2]
[351109579,1738341037800,-250.0,0.00013838,2]
[351109580,1738341037809,-774.06,0.00014,2]
[351109581,1738341037818,-804.98,0.00014,2]
[351109582,1738341037826,-1000.0,0.0001408,2]
[351109584,1738341037836,-3020.67414715,0.000141,2]
[351109586,1738341037845,-858.27,0.00014242,2]
[351109588,1738341037855,-1000.0,0.00014411,2]
[351109590,1738341037865,-171.2,0.00014549,2]
[351109592,1738341037874,-1500.0,0.00014987,2]
[351109594,1738341037884,-6268.82495789,0.00015,10]
[351109596,1738341037893,-13501.27977824,0.00015,2]
[351109598,1738341037902,-14905.5500265,0.00015,2]
[351109600,1738341037912,-779.3,0.00015039,2]
[351109602,1738341037921,-1000.0,0.00015084,2]
[351109604,1738341037930,-3321.25698816,0.000151,2]
[351109606,1738341037940,-3321.25698798,0.000151,2]
[351109608,1738341037949,-3321.25698798,0.000151,2]
[351109610,1738341037958,-3321.25698798,0.000151,2]
[351109612,1738341037968,-3321.25698798,0.000151,2]
[351109615,1738341037977,-3321.25698798,0.000151,2]
[351109617,1738341037987,-3321.25698798,0.000151,2]
[351109619,1738341037995,-3321.25698798,0.000151,2]
[351109621,1738341038005,-3321.25698798,0.00015107,2]
[351109623,1738341038015,-1000.0,0.00015342,2]
[351109625,1738341038024,-250.0,0.00015376,2]
[351109626,1738341038033,-3321.25698798,0.00015383,2]
[351109629,1738341038042,-23900.0,0.00015415,2]
[351109631,1738341038050,-324.66,0.00015581,2]
[351109633,1738341038059,-3321.25698798,0.00015659,2]
[351109635,1738341038069,-1000.0,0.00015701,2]
[351109637,1738341038078,-172.14,0.00015737,2]
[351109639,1738341038088,-27401.9,0.00015763,2]
[351109641,1738341038099,-6919.73553785,0.00015828,2]
[351109643,1738341038108,-3321.25698798,0.00015934,2]
[351109645,1738341038116,-158.04,0.00015965,2]
[351109647,1738341038126,-31719.20698009,0.00016,2]
[351109649,1738341038136,-1000.0,0.00016012,2]
[351109651,1738341038145,-858.27,0.00016022,2]
[351109653,1738341038154,-438.69,0.00016082,2]
[351109655,1738341038162,-3321.25698798,0.0001621,2]
[351109657,1738341038173,-1000.0,0.00016237,2]
[351109659,1738341038182,-7975.3696,0.00016238,2]
[351109661,1738341038191,-15042.3595,0.00016238,2]
[351109663,1738341038200,-7365.9197,0.00016238,2]
[351109665,1738341038209,-720.54,0.00016245,2]
[351109667,1738341038218,-1325.314,0.00016338,2]
[351109669,1738341038226,-5000.0,0.00016338,2]
[351109671,1738341038236,-812813.54998312,0.0001638,2]
[351109673,1738341038245,-500.0,0.00016438,2]
[351109675,1738341038254,-508.85758665,0.00016438,2]
[351109677,1738341038263,-500.0,0.00016438,2]
[351109679,1738341038273,-500.0,0.00016438,2]
[351109681,1738341038282,-500.0,0.00016438,2]
[351109683,1738341038291,-500.0,0.00016438,2]
[351109685,1738341038301,-502.95059892,0.00016438,2]
[351109687,1738341038310,-504.92408612,0.00016438,2]
[351109689,1738341038319,-516.88963972,0.00016438,2]
[351109691,1738341038328,-500.0,0.00016438,2]
[351109693,1738341038338,-500.0,0.00016438,2]
[351109695,1738341038347,-500.0,0.00016438,2]
[351109697,1738341038357,-500.0,0.00016438,2]
[351109699,1738341038366,-502.42174967,0.00016438,2]
[351109701,1738341038376,-500.0,0.00016438,2]
[351109703,1738341038385,-500.0,0.00016438,2]
[351109705,1738341038395,-500.0,0.00016438,2]
[351109707,1738341038404,-502.23231784,0.00016438,2]
[351109709,1738341038413,-500.0,0.00016438,2]
[351109711,1738341038422,-500.0,0.00016438,2]
[351109713,1738341038431,-500.0,0.00016438,2]
[351109715,1738341038440,-514.78846079,0.00016438,2]
[351109717,1738341038449,-500.0,0.00016438,2]
[351109719,1738341038459,-500.0,0.00016438,2]
[351109721,1738341038468,-500.0,0.00016438,2]
[351109723,1738341038478,-500.0,0.00016438,2]
[351109725,1738341038488,-500.0,0.00016438,2]
[351109727,1738341038498,-500.0,0.00016438,2]
[351109730,1738341038508,-500.0,0.00016438,2]
[351109732,1738341038517,-513.99280712,0.00016438,2]
[351109733,1738341038526,-500.0,0.00016438,2]
[351109735,1738341038535,-504.41612354,0.00016438,2]
[351109737,1738341038545,-500.0,0.00016438,2]
[351109739,1738341038554,-500.0,0.00016438,2]
[351109741,1738341038564,-500.0,0.00016438,2]
[351109744,1738341038574,-500.0,0.00016438,2]
[351109746,1738341038583,-275.7878382,0.00016438,2]
[351109747,1738341038592,-500.0,0.00016438,2]
[351109749,1738341038601,-500.0,0.00016438,2]
[351109751,1738341038610,-500.0,0.00016438,2]
[351109753,1738341038620,-500.0,0.00016438,2]
[351109755,1738341038629,-500.0,0.00016438,2]
[351109757,1738341038639,-202.93245154,0.00016438,2]
[351109759,1738341038648,-582.27405837,0.00016438,2]
[351109761,1738341038657,-513.05127249,0.00016438,2]
[351109763,1738341038666,-500.0,0.00016438,2]
[351109765,1738341038676,-500.0,0.00016438,2]
[351109767,1738341038685,-696.02,0.00016438,2]
[351109769,1738341038694,-500.0,0.00016438,2]